Cogmind - Beta 14 @@@ ROGUE MODE // 2024.08.18 @ 09:18:56 Player: Tim Result: Destroyed by AI-ICD(R) with Subdweller Machine Gun Performance ------------- Evolutions (0) 0 Regions Visited (3) 600 Robots Destroyed (24) 120 Value Destroyed (643) 643 Prototype IDs (0) 0 Alien Tech Used (0) 0 Bonus (0) 0 TOTAL SCORE: 1363 Bonus ------- None Cogmind --------- Core Integrity 0/250 Matter 300/300 Energy 265/265 System Corruption 0% Temperature Cool (0) Movement Walking (120) Location -10/Subcaves Parts ------- > --- POWER (1) -------- Improved Ion Engine > --- PROPULSION (2) --- Aluminum Leg Aluminum Leg > --- UTILITY (2) ------ Medium Storage Unit > --- WEAPON (2) ------- Light Assault Rifle > --- INVENTORY (10) --- Subdweller Power Source Aluminum Leg Large Storage Unit Sensor Array Scrap Shield Shield Generator Grenade Launcher Mining Laser Flamer Peak State ------------ > --- POWER ------------ Improved Ion Engine > --- PROPULSION ------- Aluminum Leg Aluminum Leg > --- UTILITY ---------- Medium Storage Unit Shield Generator > --- WEAPON ----------- Light Assault Rifle Light Assault Rifle > --- INVENTORY -------- Improved Ion Engine Improved Ion Engine Aluminum Leg Medium Storage Unit Large Storage Unit High-capacity Matter Pod Sensor Array Shield Generator Shield Generator Light Assault Rifle [Rating: 10] Favorites ----------- Power Improved Ion Engine Engine Improved Ion Engine Propulsion Aluminum Leg Leg Aluminum Leg Utility Medium Storage Unit Device Shield Generator Storage Medium Storage Unit Weapon Light Assault Rifle Ballistic Gun Light Assault Rifle Ballistic Cannon Light Cannon Launcher Grenade Launcher Special Weapon Mining Laser Impact Weapon Hammer Build | -11 -10 -10 -10 ------- Run | Yrd Mat Min Sub Slots Evolved . | . . . . Power . | . . . . Propulsion . | . . . . Utility . | . . . . Weapon . | . . . . Parts Attached 47 | 10 23 10 4 Power 7 | 4 3 . . Engine 7 | 4 3 . . Core . | . . . . Reactor . | . . . . Propulsion 14 | 3 9 2 . Treads . | . . . . Leg 14 | 3 9 2 . Wheel . | . . . . Hover . | . . . . Flight . | . . . . Utility 9 | 1 5 2 1 Device 6 | . 4 2 . Storage 3 | 1 1 . 1 Processor . | . . . . Hackware . | . . . . Protection . | . . . . Artifact . | . . . . Weapon 17 | 2 6 6 3 Energy Gun . | . . . . Energy Cannon . | . . . . Ballistic Gun 12 | 2 4 4 2 Ballistic Cannon 2 | . 2 . . Launcher 1 | . . 1 . Special Weapon 1 | . . . 1 Impact Weapon 1 | . . 1 . Slashing Weapon . | . . . . Piercing Weapon . | . . . . Special Melee Weapon . | . . . . Unidentified Prototypes . | . . . . Parts Lost 7 | . 3 1 3 Power 1 | . 1 . . Propulsion 1 | . 1 . . Utility 2 | . . 1 1 Weapon 3 | . 1 . 2 Highest Loss Streak 3 | . 1 1 3 To Critical Strikes . | . . . . Average Slot Usage (%) 99 | . 99 99 100 Engine 13 | . 13 14 14 Leg 28 | . 28 28 28 Device 13 | . 13 13 14 Storage 14 | . 14 14 14 Ballistic Gun 24 | . 22 27 19 Ballistic Cannon 2 | . 5 . . Peak Build Rating 10 | 6 10 10 9 Average Rating 8 | 3 8 9 8 On Entrance 6 | . 6 10 9 Naked Turns . | . . . . Heaviest Build 23 | 11 22 23 20 Greatest Support 20 | 20 20 20 20 Greatest Overweight (x) 6 | 3 6 2 . Average Overweight (x) . | . . . . Largest Inventory Capacity 10 | 8 10 10 10 Average Capacity 9 | 7 9 10 10 Most Carried 10 | 8 10 10 10 Average Carried 8 | 4 8 9 9 Final Capacity 10 | 8 10 10 10 Final Carried 10 | 3 10 10 10 Class Distribution -------------------- 66% | Mutant 33% | Scavenger-Mutant Dominant Class ---------------- Mutant | -10/Materials Mutant | -10/Mines Mutant | -10/Subcaves Resources | -11 -10 -10 -10 ----------- Run | Yrd Mat Min Sub Matter Collected 1173 | 189 651 290 43 Remotely . | . . . . Salvage Created 634 | . 464 120 50 Parts 45 | . 33 7 5 Haulers Intercepted 1 | . 1 . . Recyclers Shooed 1 | . . 1 . Parts Field Recycled . | . . . . Retrieved Matter . | . . . . Parts Self-Destructed . | . . . . Prevented . | . . . . Kills | -11 -10 -10 -10 ------- Run | Yrd Mat Min Sub Combat Hostiles Destroyed 23 | . 17 5 1 Guns 15 | . 10 4 1 Cannons 6 | . 6 . . AOE 2 | . 1 1 . Classes Destroyed 4 | . 3 . 1 Hauler 1 | . 1 . . Swarmer 9 | . 6 3 . Grunt 13 | . 11 2 . Subdweller 1 | . . . 1 Best Kill Streak 3 | . 3 3 1 Combat Bots Only 3 | . 3 3 1 Max Kills in Single Turn 1 | . 1 1 1 Gunslinging . | . . . . Exploded 1 | . 1 1 . Melee . | . . . . Uniques/NPCs Destroyed . | . . . . Combat | -11 -10 -10 -10 -------- Run | Yrd Mat Min Sub Hostile Shots Fired 167 | . 99 54 14 Missed 43 | . 27 12 4 Damage Taken 1328 | . 791 320 217 Core 254 | . 142 64 48 Absorbed by Shields 181 | . 58 123 . Core Remaining (%) 100 | 100 . . . Volleys Fired 99 | . 66 27 6 Largest 2 | . 2 2 2 Hottest 100 | . 70 40 100 Shots Fired 185 | . 131 44 10 Gun 132 | . 82 42 8 Cannon 49 | . 49 . . Launcher 2 | . . 2 . Special 2 | . . . 2 Kinetic 181 | . 131 42 8 Thermal 2 | . . . 2 Explosive 2 | . . 2 . Electromagnetic . | . . . . Robot Hit Streak 13 | . 6 8 13 Robot Miss Streak 5 | . 5 5 . Penetration Max . | . . . . Secondary Targets . | . . . . Shots Hit Robots 113 | . 76 29 8 Core Hits 48 | . 30 14 4 Critical Kills 1 | . 1 . . Critical Parts Destroyed . | . . . . Critical Strikes 1 | . 1 . . Destroy 1 | . 1 . . Melee Attacks . | . . . . Impact . | . . . . Slashing . | . . . . Piercing . | . . . . Sneak Attacks . | . . . . Combat Hostiles . | . . . . Follow-up Attacks . | . . . . Damage Inflicted 1477 | . 1057 355 65 Guns 714 | . 416 233 65 Cannons 481 | . 481 . . Explosions 236 | . 114 122 . Melee . | . . . . Ramming 46 | . 46 . . Kinetic 1195 | . 897 233 65 Thermal 114 | . 114 . . Explosive 122 | . . 122 . Electromagnetic . | . . . . Impact . | . . . . Slashing . | . . . . Piercing . | . . . . Highest Corruption . | . . . . Average Corruption . | . . . . Corruption Purged . | . . . . Corruption Blocked . | . . . . Overload Shots . | . . . . Overflow Damage 123 | . 90 33 . Projectiles . | . . . . Explosions 123 | . 90 33 . Melee . | . . . . Knockbacks 12 | . 12 . . Impact 1 | . 1 . . Kinetic 8 | . 8 . . Secondary 3 | . 3 . . Self-Inflicted Damage 98 | . 98 . . Shots 1 | . 1 . . Rammed . | . . . . Targets Rammed 5 | . 5 . . Kicked 5 | . 5 . . Crushed . | . . . . Highest Temperature 229 | . 229 24 . Average Temperature 52 | . 67 5 . Received Heat Transfer 385 | . 259 90 36 Siege Activations . | . . . . Robots Corrupted . | . . . . Combat Hostiles . | . . . . Parts Fried . | . . . . Impact Corruptions . | . . . . Robots Melted . | . . . . Combat Hostiles . | . . . . Parts Melted . | . . . . Heat Transferred 100 | . 100 . . Parts Sabotaged . | . . . . Parts Stolen . | . . . . Parts Stripped . | . . . . Power Chain Reactions . | . . . . Alert | -11 -10 -10 -10 ------- Run | Yrd Mat Min Sub Peak Influence 365 | . 365 226 . Initial 102 | . . 102 . Average 117 | . 175 64 . Maximum Alert Level 1 | . 1 1 . Low Security (%) 65 | 100 48 81 . Level 1 34 | . 51 18 . Level 2 . | . . . . Level 3 . | . . . . Level 4 . | . . . . Level 5 . | . . . . High Security . | . . . . Max Security . | . . . . Squads Dispatched 4 | . 4 . . Investigation 2 | . 2 . . Extermination . | . . . . Reinforcement 2 | . 2 . . Assault . | . . . . Garrison . | . . . . Intercept . | . . . . Searches Triggered . | . . . . Construction Impeded . | . . . . Haulers Reinforced . | . . . . Active Scanning Responses . | . . . . Cargo Convoy Interrupts . | . . . . Stealth | -11 -10 -10 -10 --------- Run | Yrd Mat Min Sub Distress Signals 2 | . 2 . . Communications Jammed . | . . . . Distress Signals . | . . . . Times Spotted 52 | . 40 6 6 Peak Tracking Total 5 | . 5 3 5 Tactical Retreats 4 | . 4 . . Traps | -11 -10 -10 -10 ------- Run | Yrd Mat Min Sub Traps Triggered 1 | . 1 . . Indirectly . | . . . . Trap Hack Attempts . | . . . . Triggered . | . . . . Disarmed . | . . . . Reprogrammed . | . . . . Reused . | . . . . Traps Extracted . | . . . . Installed 1 | . . . 1 Triggered . | . . . . Machines | -11 -10 -10 -10 ---------- Run | Yrd Mat Min Sub Machines Disabled 3 | . 2 1 . Max in Single Turn 2 | . 2 1 . Machines Repaired . | . . . . Machines Dismantled . | . . . . Machines Sabotaged . | . . . . Overloaded Fab Kills . | . . . . Hacking | -11 -10 -10 -10 --------- Run | Yrd Mat Min Sub Machines Accessed 9 | . 8 1 . Terminals 8 | . 7 1 . Fabricators . | . . . . Repair Stations . | . . . . Recycling Units 1 | . 1 . . Scanalyzers . | . . . . Garrison Access . | . . . . Total Hacks 24 | . 21 3 . Successful 10 | . 9 1 . Failed 14 | . 12 2 . Catastrophic 2 | . 1 1 . Database Lockouts . | . . . . Manual 5 | . 2 3 . Terminals 23 | . 20 3 . Fabricators . | . . . . Repair Stations . | . . . . Recycling Units 1 | . 1 . . Scanalyzers . | . . . . Garrison Access . | . . . . Terminal Hacks 9 | . 8 1 . Robot Analysis 2 | . 2 . . Level Access Points 1 | . 1 . . Branch Access Points 1 | . 1 . . Emergency Access Points 1 | . 1 . . Unreport Threat 1 | . 1 . . Maintenance Status 1 | . 1 . . Zone Layout 2 | . 1 1 . Fabricator Hacks . | . . . . Repair Station Hacks . | . . . . Recycling Unit Hacks 1 | . 1 . . Report Inventory 1 | . 1 . . Scanalyzer . | . . . . Garrison Access Hacks . | . . . . Unauthorized Hacks . | . . . . Terminals . | . . . . Fabricators . | . . . . Repair Stations . | . . . . Recycling Units . | . . . . Scanalyzers . | . . . . Garrison Access . | . . . . Data Cores Recovered . | . . . . Used . | . . . . Hacking Detections 8 | . 7 1 . Full Trace Events 3 | . 2 1 . Feedback Events . | . . . . Feedback Blocked . | . . . . Robot Schematics Acquired . | . . . . Robots Built . | . . . . Authchips . | . . . . Time . | . . . . Total Robot Build Rating . | . . . . Part Schematics Acquired . | . . . . Parts Built . | . . . . Authchips . | . . . . Time . | . . . . Total Part Build Rating . | . . . . Parts Repaired . | . . . . Time . | . . . . Parts Recycled . | . . . . Recycled Matter . | . . . . Retrieved Matter . | . . . . Retrieved Components . | . . . . Parts Scanalyzed . | . . . . Part Schematics Acquired . | . . . . Parts Damaged . | . . . . Bothacking | -11 -10 -10 -10 ------------ Run | Yrd Mat Min Sub Used RIF Installer . | . . . . Robots Hacked . | . . . . Non-combat . | . . . . Combat . | . . . . Robot Hacks Applied . | . . . . Relay Couplers Released . | . . . . Fabnet Peak Effective % . | . . . . Robots Rewired . | . . . . Allies Hacked . | . . . . Hacks Repelled . | . . . . Allies | -11 -10 -10 -10 -------- Run | Yrd Mat Min Sub Total Allies . | . . . . Largest Group . | . . . . Highest-Rated Group . | . . . . Highest-Rated Ally . | . . . . Total Orders . | . . . . Ally Attacks . | . . . . Total Damage . | . . . . Kills . | . . . . Allies Corrupted . | . . . . Allies Melted . | . . . . Intel | -11 -10 -10 -10 ------- Run | Yrd Mat Min Sub Robot Analysis Total 2 | . 2 . . Derelict Logs Recovered 2 | . . 1 1 Drone Launches . | . . . . Drone Recoveries . | . . . . Exploration | -11 -10 -10 -10 ------------- Run | Yrd Mat Min Sub Turns Passed 3423 | 161 1636 1430 196 Spaces Moved 1920 | 110 903 771 136 Core 42 | 40 2 . . Treads . | . . . . Legs 1878 | 70 901 771 136 Wheels . | . . . . Hover . | . . . . Flight . | . . . . Fastest Speed 50 | 50 120 120 120 Average Speed 148 | 128 135 172 120 Slowest Speed 350 | 200 350 260 120 Overloaded Moves . | . . . . Propulsion Burnouts . | . . . . Robots Hopped . | . . . . Cave-ins Triggered . | . . . . Exploration Rate (%) 52 | 4 97 99 9 Regions Visited 3 Branch Regions 2 Pre-discovered Areas . | . . . . Known Exits Taken 1 | . 1 . . Unknown Exits Taken 2 | 1 . 1 . Scrap Searched 4 | . . 2 2 Spaces Dug . | . . . . Terrain Destroyed 44 | . 31 13 . Melee . | . . . . Projectile . | . . . . AOE 44 | . 31 13 . Terrain Rammed . | . . . . Walls Destroyed . | . . . . Machines Disabled . | . . . . Actions | -11 -10 -10 -10 --------- Run | Yrd Mat Min Sub Total 2320 | 128 1200 835 157 Wait 201 | . 177 22 2 Move 1917 | 109 902 770 136 Hop . | . . . . Pick Up 27 | 8 13 2 4 Fast Attach 3 | 1 1 1 . Attach 11 | 6 3 1 1 Detach 1 | 1 . . . Swap 33 | 3 19 8 3 Drop 22 | . 14 4 4 Fire 99 | . 66 27 6 Melee . | . . . . Ram . | . . . . Kick 5 | . 5 . . Crush . | . . . . Escape Stasis . | . . . . Rewire . | . . . . Trap 1 | . . . 1 Miscellaneous . | . . . . Route ------- -11/Scrapyard -10/Materials (discovered 5 exits: *Mat x3 / *Min x2) -10/Mines (discovered 3 exits: *Mat x2 / [*Sub]) -10/Subcaves History --------- Turn | Location | Event 7 | -11/Scrapyard | Discovered new exit (range 15) 162 | -11/Scrapyard | Entered Materials 311 | -10/Materials | Build established: Mutant 822 | -10/Materials | Discovered new exit (range 15) 972 | -10/Materials | Discovered new exit (range 13) 1082 | -10/Materials | Identified exit to Mines 1199 | -10/Materials | Identified exit to Materials 1322 | -10/Materials | Build established: Scavenger-Mutant 1568 | -10/Materials | Core integrity fell below 50% 1798 | -10/Materials | Entered Mines 1819 | -10/Mines | Met a Derelict bent on vengeance 1918 | -10/Mines | Core integrity fell below 20% 1969 | -10/Mines | Discovered exit to Materials (range 9) 2154 | -10/Mines | Build established: Mutant 2596 | -10/Mines | Learned location of 1 exit from Materials 2615 | -10/Mines | Discovered exit to Materials (range 8) 2937 | -10/Mines | Discovered new exit (range 10) 3228 | -10/Mines | Entered Subcaves 3271 | -10/Subcaves | A swath of the cavern ceiling suddenly collapsed 3335 | -10/Subcaves | Learned Materials emergency access door positions 3393 | -10/Subcaves | Ambushed by swarm of Subdwellers 3395 | -10/Subcaves | Disturbed a concealed Subdweller 3424 | -10/Subcaves | Destroyed by AI-ICD(R) with Subdweller Machine Gun Last Messages --------------- 03395_ PJ-J9J(R) angrily emerges from the Twisted Machinery. 03396_ 5E-J26(g): "Sorry we're late! Had another grouchy Sub to deal with. Who's the new fellow?" 03400_ Lgt. Assault Rifle destroyed. 03401_ 7R-F8J(h) destroyed. 03403_ 5E-J26(g) destroyed. 03404_ PJ-J9J(R) affixes Scrap Shield Fragment to Scrap Shield. 03405_ PJ-J9J(R) destroyed. 03408_ Acquired 23 matter. 03410_ Searching scrap... 03410_ Found Sub. Optics. 03410_ Found Flamer. 03411_ Searching scrap... 03411_ Found Shrapnel Trap. 03413_ Installed Shrapnel Trap. 03415_ Acquired Flamer. 03420_ GX-U3N(R) affixes Scrap Shield Fragment to Scrap Shield. 03421_ Lgt. Assault Rifle destroyed. 03422_ Dropped Imp. Ion Engine. 03422_ Acquired Sub. Power Source. 03423_ Structural Scanner destroyed. Map ----- +----------------------------------------------------+ | ?????????????????????????????????????????????????? | | ?????????????????????????????????????????????????? | | ?????????????????????????????????????????????????? | | ?????????????????????????????????????????????????? | | ?????????????????????????????????????????????????? | | ?????????????????????????????????????????????????? | | ?????????????????????????????????????????????????? | | ?????????????????????????????????????????????????? | | ?????????????????????????????????????????????????? | | ?????????????????????????????????????????????????? | | ?????????????????????????????????????????????????? | | ?????????????????????????????????????????????????? | | ?????????????????????????????????????????????????? | | ?????????????????????????????????????????????????? | | ?????????????????????????????????????????????????? | | ?????????????????????????????????????????????????? | | ?????????????????????????????????????????????????? | | ?????????????????????????????????????????????????? | | ?????????????????????????????????????????????????? | | ????????????????????#########????????????????????? | | ????????????????????#########????????????????????? | | ????????????????????##"&!&<##????????????????????? | | ????????????????????##^ ##%##????????????????????? | | ????????????????????#####=&##????????????????????? | | ????????????????????####< ###????????????????????? | | ???????????????????### ##@###????????????????????? | | ???????????????????### *%=####??????????????????? | | ????????????######### * ####??????????????????? | | ????????## ?## ##### RR| #######?????????????? | | ????????## !%!## ####?????????????? | | ????????## # ###### ==RR= ["" ##?????????? | | ####??????? ######## !%=!%R%% ##### ##?????????? | | ####???????????### % %! ########?###?????????? | | # ???????????## # % ####??????????????????? | | # ?????????### # ## ###???????????????????? | | ## ? ## ###### ###### ##????????????????????? | | # ########### ##########????????????????????? | | ## ### ## # #####???####????????????????????? | | ## ## ###????????????????????????????? | | # ##?????????????????????????????? | | # ## ## ###?????????????????????????????? | | ###########?????????????????????????????? | | ##########??????????????????????????????? | | ###????????????????????????????????????? | | ##????????????????????????????????????? | | # ##????????????????????????????????????? | | # ####???????????????????#####????????????? | | ## # ##############################??????????? | | ## ########################"####??????????? | | # ## # # # #"##"""##??????????? | +----------------------------------------------------+ Best States ------------- Heat Dissipation 25 Energy Generation 12 Energy Capacity 265 Matter Stores 300 Matter Capacity 300 Sight Range 16 Robot Scan Range 14 Terrain Scan Density 10 Evasion (%) 55 Item Schematics ----------------- None Robot Schematics ------------------ None Fabricated ------------ Nothing Alien Tech Used ----------------- None Achievements -------------- None Challenges ------------ None Game ------ Seed HugeGaussPenetrator Manual? 0 Play Time 01:06:57 Cumulative 20.2 hours Start 2024.08.18 @ 05:29:20 End 2024.08.18 @ 09:18:56 Sessions 1 Manual Loads 0 Difficulty Rogue Special Mode None Game No. 41 Rogue 41 Adventurer 0 Explorer 0 Win Type - Total 0 Types 0/0/0/0/0/0/0/0/0 Lore% 11 Gallery% 15 Achievement% 13 Wizard Run 0 Options --------- Layout 0 ASCII 0 Keyboard 0 Movement Numpad Keybinds 0 Fullscreen 2 Font 24/Smallcaps Map View 113x50 Zoom Use 0% Tactical HUD 1 Map Filters NONE Filters NONE Steam 1 RUN: 41c1afab-6617-4135-99eb-b1b039e566a7